bitfinex-derivatives/quotes_ETHF0:USTF0_20250905
["timestamp","ask_amount","ask_price","bid_price","bid_amount"]
[1757084791330,3.2078,4283.9,4283.5,0.6099]
[1757084791630,3.2078,4285.0,4283.8,3.2078]
[1757084791936,3.2078,4285.0,4284.1,1.4553]
[1757084792128,3.2078,4285.0,4284.6,1.4553]
[1757084792322,3.2078,4285.5,4284.6,1.4553]
[1757084792527,1.19728642,4285.6,4285.1,3.2078]
[1757084792726,1.19728642,4285.6,4285.2,1.4553]
[1757084793124,1.19728642,4285.6,4285.1,3.2078]
[1757084793326,1.19728642,4285.6,4285.2,1.4553]
[1757084793531,2.07568642,4285.6,4284.6,1.4553]
[1757084793732,5.28348642,4285.6,4284.6,1.4553]
[1757084794231,3.2078,4285.1,4284.5,3.8177]
[1757084794435,3.2078,4285.1,4284.5,3.2078]
[1757084795126,3.2078,4285.1,4284.4,1.4553]
[1757084795328,3.2078,4284.9,4284.5,0.6099]
[1757084795524,4.40508642,4285.6,4284.6,1.4553]
[1757084795730,1.19728642,4285.6,4285.1,1.4553]
[1757084795927,1.19728642,4285.6,4285.1,3.2078]
[1757084796335,1.19728642,4285.6,4285.2,1.4553]
[1757084796836,3.2078,4286.1,4285.2,1.4553]
[1757084797031,3.2078,4285.6,4285.2,1.4553]
[1757084797331,3.2078,4285.6,4284.7,1.4553]
[1757084797630,3.2078,4286.1,4285.6,1.4553]
[1757084798436,3.2078,4286.1,4285.5,2.0652]
[1757084798829,3.2078,4286.6,4285.6,3.2078]
[1757084799035,3.2078,4286.6,4285.7,1.4553]
[1757084799334,3.2078,4286.6,4286.0,0.6099]
[1757084799737,3.2078,4286.6,4286.5,2.0652]
[1757084800040,3.2078,4286.6,4286.5,1.4553]
[1757084800736,3.2078,4286.6,4285.9,1.4553]
[1757084800942,3.4718,4286.6,4285.9,1.4553]
[1757084801134,3.4718,4286.6,4285.7,0.264]
[1757084801642,3.2078,4286.6,4285.7,0.264]
[1757084801844,3.2078,4286.6,4285.8,1.4553]
[1757084802843,0.264,4287.0,4286.0,3.2078]
[1757084803141,3.2078,4287.6,4286.1,1.4553]
[1757084803345,3.2078,4287.6,4286.6,4.6631]
[1757084803639,3.2078,4287.6,4286.7,0.264]
[1757084803840,3.2078,4287.6,4286.6,1.4553]
[1757084804035,3.2078,4287.6,4286.7,0.264]
[1757084804838,3.2078,4287.6,4286.6,1.7193]
[1757084805035,3.2078,4286.9,4286.6,0.264]
[1757084805344,3.2078,4286.9,4286.1,4.6631]
[1757084805638,3.2078,4286.9,4286.5,1.4553]
[1757084805946,4.0862,4286.9,4286.5,1.4553]
[1757084806139,0.8784,4286.8,4286.2,0.264]
[1757084806340,1.1424,4286.8,4286.0,1.4553]
[1757084806546,1.1424,4286.8,4286.0,2.0652]
[1757084806950,3.2078,4286.4,4286.1,1.4553]
[1757084807244,3.2078,4286.4,4286.0,0.6099]
[1757084807442,3.2078,4286.9,4286.1,1.4553]
[1757084807640,0.264,4287.1,4286.3,1.4553]
[1757084808540,3.2078,4286.9,4286.3,1.4553]
[1757084808744,3.2078,4287.0,4286.3,1.4553]
[1757084809741,0.264,4287.2,4286.3,1.4553]
[1757084810637,3.2078,4287.0,4286.0,0.6099]
[1757084811436,3.2078,4287.0,4286.1,1.5459]
[1757084812446,0.264,4287.2,4286.0,0.6099]
[1757084812447,3.2078,4286.5,4286.0,0.6099]
[1757084812648,3.2078,4286.5,4285.6,1.5459]
[1757084814045,3.2078,4286.0,4285.1,1.5459]
[1757084814239,0.263,4285.9,4285.1,1.5459]
[1757084814441,3.2078,4285.5,4284.9,3.2078]
[1757084814638,3.4708,4285.5,4284.9,3.2078]
[1757084814948,3.4708,4285.5,4284.5,2.1558]
[1757084815137,3.70417,4285.5,4284.4,3.2078]
[1757084815343,3.4708,4285.5,4284.6,1.5459]
[1757084816044,0.263,4285.4,4284.6,1.5459]
[1757084816346,0.263,4285.4,4284.5,0.625]
[1757084816347,0.263,4285.4,4285.0,0.625]
[1757084816549,0.263,4285.4,4285.1,1.5459]
[1757084817247,0.263,4285.4,4285.0,0.625]
[1757084817643,0.263,4285.4,4285.1,1.5459]
[1757084818041,0.263,4285.4,4285.0,0.625]
[1757084818244,0.263,4285.4,4285.2,1.5459]
[1757084818445,0.263,4285.4,4285.1,1.5459]
[1757084818942,0.263,4285.4,4285.0,0.625]
[1757084819451,0.263,4285.4,4285.1,1.5459]
[1757084819646,3.2078,4286.1,4285.5,0.625]
[1757084819847,3.4708,4286.1,4285.5,0.625]
[1757084820045,3.4708,4286.1,4285.5,2.1709]
[1757084820240,7.64954134,4286.1,4285.0,0.625]
[1757084820444,7.64954134,4286.1,4284.5,0.625]
[1757084820445,3.2078,4285.6,4284.5,0.625]
[1757084820647,0.263,4285.5,4284.5,2.1709]
[1757084820848,3.2078,4285.1,4284.4,3.2078]
[1757084821146,0.263,4285.0,4284.6,1.5459]
[1757084821540,0.263,4285.0,4284.5,0.625]
[1757084821746,3.2078,4285.1,4285.0,2.1709]
[1757084822244,3.2078,4285.1,4284.5,2.1709]
[1757084822844,3.2078,4285.1,4284.0,0.625]
[1757084823044,3.2078,4284.6,4284.0,0.625]
[1757084823242,0.263,4284.5,4283.5,0.625]
[1757084823449,3.2078,4284.1,4283.5,0.625]
[1757084823651,3.2078,4283.6,4283.4,1.66797697]
[1757084823950,0.263,4283.5,4283.4,1.04297697]
[1757084824151,4.263,4283.5,4283.4,1.04297697]
[1757084825445,4.263,4283.5,4282.9,2.08497122]
[1757084825652,3.2078,4283.0,4282.2,1.5459]
[1757084825841,3.2078,4282.3,4282.2,1.5459]
[1757084826241,3.2078,4283.2,4283.0,0.625]
[1757084826446,3.2078,4283.8,4283.5,0.625]
[1757084826645,0.263,4284.0,4283.6,1.5459]
[1757084826842,35.4218,4284.9,4284.1,1.5459]
[1757084827046,0.263,4284.8,4284.5,0.625]
[1757084827652,0.263,4284.8,4284.1,1.5459]
[1757084827853,3.2078,4284.9,4284.5,0.625]
[1757084828153,3.2078,4284.9,4284.6,1.5459]
[1757084828652,0.263,4284.9,4284.5,0.625]
[1757084828848,0.263,4284.9,4284.6,1.5459]
[1757084829050,0.263,4284.9,4284.5,0.625]
[1757084829254,0.263,4284.9,4284.6,1.5459]
[1757084829455,0.263,4285.2,4284.6,1.5459]
[1757084829661,0.263,4285.2,4285.1,1.5459]
[1757084829949,0.263,4285.2,4284.5,2.1709]
[1757084831156,3.2078,4285.3,4284.5,2.1709]
[1757084831355,1.19728642,4285.4,4285.1,1.5459]
[1757084831655,0.263,4285.7,4285.6,1.5459]
[1757084832090,7.4708,4285.7,4285.1,1.5459]
[1757084832253,3.4708,4285.7,4285.1,1.5459]
[1757084832951,3.4708,4285.7,4285.0,0.625]
[1757084833154,3.4708,4285.7,4285.1,1.5459]
[1757084833551,3.4708,4285.7,4284.5,2.1709]
[1757084833552,3.2078,4285.2,4284.5,2.1709]
[1757084833848,0.263,4285.1,4284.5,2.1709]
[1757084834054,0.263,4285.1,4284.6,1.5459]
[1757084834244,4.23338,4285.0,4284.0,2.1709]
[1757084834450,3.2078,4284.1,4283.5,0.5156163]
[1757084834649,0.263,4284.0,4283.0,0.625]
[1757084834851,3.2078,4284.1,4283.0,0.625]
[1757084835152,3.2078,4284.6,4284.0,0.625]
[1757084835347,0.263,4285.0,4284.0,0.625]
[1757084836559,0.263,4285.0,4284.1,1.5459]
[1757084837051,0.263,4285.0,4284.2,3.2078]
[1757084837251,1.8615,4284.9,4284.6,1.5459]
[1757084837653,1.8615,4284.9,4284.5,0.625]
[1757084838155,1.8615,4284.9,4284.6,1.6027]
[1757084838559,1.8615,4284.9,4284.5,0.625]
[1757084838762,1.8615,4284.9,4284.6,1.6027]
[1757084839963,1.8615,4284.9,4284.8,3.2078]
[1757084840255,0.263,4285.6,4284.8,4.8105]
[1757084840461,0.263,4285.6,4285.0,0.5918]
[1757084840759,0.263,4285.6,4285.0,1.6027]
[1757084841162,0.263,4285.6,4285.0,2.1945]
[1757084841460,0.263,4285.5,4285.1,1.6027]
[1757084841952,0.263,4285.5,4285.0,0.5918]
[1757084842460,3.2078,4286.3,4285.6,1.6027]
[1757084842756,3.2078,4286.3,4286.1,1.6027]
[1757084843262,3.2078,4286.3,4285.6,1.6027]
[1757084843561,3.2078,4285.8,4284.8,0.263]
[1757084843860,0.263,4285.7,4284.8,0.263]
[1757084844459,0.263,4285.7,4284.6,3.2078]
[1757084844656,1.5624,4285.1,4284.0,0.5918]
[1757084844850,0.263,4285.0,4284.0,0.5918]
[1757084845364,0.263,4285.0,4284.2,1.6027]
[1757084845863,1.7499,4284.9,4284.2,1.6027]
[1757084847853,3.2078,4284.8,4284.2,1.6027]
[1757084848156,1.8254,4284.7,4283.7,1.6027]
[1757084848765,3.2078,4284.8,4283.7,1.6027]
[1757084848956,2.0129,4284.9,4284.2,3.2078]
[1757084849259,2.0129,4284.9,4284.3,1.6027]
[1757084849663,2.0129,4284.9,4284.6,1.6027]
[1757084850161,3.2078,4285.9,4284.8,1.6027]
[1757084850365,3.2078,4285.9,4285.3,3.2078]
[1757084850562,3.2078,4285.9,4285.3,4.8105]
[1757084850965,1.5624,4285.7,4284.8,0.263]
[1757084851163,1.5624,4285.7,4284.7,3.2078]
[1757084851365,3.2078,4285.9,4284.8,1.6027]
[1757084851566,3.2078,4285.9,4285.3,1.6027]
[1757084851765,3.2078,4285.9,4285.5,0.5918]
[1757084851971,0.263,4286.5,4285.8,1.6027]
[1757084852768,4.0359,4286.7,4284.3,0.18098194]
[1757084852964,0.8281,4284.6,4283.3,3.27014325]
[1757084853166,3.2078,4283.8,4283.3,1.66744325]
[1757084853366,3.2078,4283.8,4283.4,1.6027]
[1757084853559,3.2078,4283.8,4283.6,1.6027]
[1757084853764,0.8281,4285.2,4283.6,1.6027]
[1757084853765,3.2078,4283.7,4283.6,1.6027]
[1757084854164,3.2078,4284.9,4283.6,3.2078]
[1757084854366,0.263,4284.8,4283.7,1.6027]
[1757084854667,0.263,4284.7,4283.7,1.6027]
[1757084854869,3.2078,4284.9,4283.7,1.6027]
[1757084855068,0.263,4284.8,4283.7,1.6027]
[1757084855471,1.3343,4284.7,4283.7,1.6027]
[1757084855960,1.3343,4284.7,4284.6,1.6027]
[1757084856366,1.3343,4284.7,4284.6,5.6027]
[1757084856573,1.3343,4284.7,4284.6,1.6027]
[1757084856773,1.3343,4284.7,4284.6,4.8105]
[1757084857072,1.3343,4284.7,4284.6,1.6027]
[1757084857273,1.3343,4284.7,4284.1,1.8657]
[1757084857865,3.2078,4284.3,4283.6,1.6027]
[1757084858070,3.2078,4284.3,4283.7,1.67443184]
[1757084858373,3.4708,4284.3,4283.7,1.67443184]
[1757084859270,2.8967,4284.7,4283.8,1.6027]
[1757084859479,1.3343,4284.7,4284.1,1.6027]
[1757084859974,1.3343,4284.7,4284.5,0.5918]
[1757084860173,1.3343,4284.7,4284.6,1.6027]
[1757084860375,1.5624,4285.8,4284.6,1.6027]
[1757084860667,3.2078,4285.9,4284.5,7.7996]
[1757084860668,0.5945,4285.5,4284.5,3.4708]
[1757084860871,1.5624,4285.1,4284.5,3.4708]
[1757084861069,3.2078,4285.3,4284.6,1.0667]
[1757084861269,2.1569,4285.5,4284.5,4.5375]
[1757084861464,1.5624,4285.5,4285.1,1.0667]
[1757084861664,3.2078,4286.1,4285.0,1.0667]
[1757084862271,0.5945,4286.0,4285.0,1.0667]
[1757084863176,3.3523,4285.9,4285.0,1.0667]
[1757084863976,3.3523,4285.9,4284.9,0.263]
[1757084864169,0.263,4285.8,4284.8,3.2078]
[1757084864371,2.1569,4285.5,4284.8,3.2078]
[1757084864572,2.1569,4285.5,4284.3,4.5375]
[1757084864775,0.5945,4285.5,4284.3,4.5375]
[1757084864973,1.5624,4285.4,4284.3,4.5375]
[1757084865176,1.5624,4285.4,4284.9,1.67443184]
[1757084865480,2.1569,4285.0,4284.9,1.67443184]
[1757084865875,6.1569,4285.0,4284.9,1.67443184]
[1757084866075,4.8575,4285.0,4283.7,3.2078]
[1757084866270,0.5945,4284.5,4283.2,3.2078]
[1757084866475,1.5624,4284.3,4283.2,3.2078]
[1757084866675,0.263,4284.4,4283.2,3.2078]
[1757084866874,3.2078,4284.0,4283.2,3.2078]
[1757084867075,1.8244,4283.9,4283.2,3.2078]
[1757084867480,1.5624,4283.8,4282.8,3.69573981]
[1757084867782,1.73882271,4283.8,4282.8,3.69573981]
[1757084868378,3.2078,4284.0,4282.9,1.8753]
[1757084868578,3.2078,4284.0,4283.3,1.6133]
[1757084869072,3.2078,4284.0,4283.2,3.2078]
[1757084869073,1.5795,4283.8,4282.9,0.262]
[1757084869480,3.8473,4283.5,4282.7,3.2078]
[1757084869676,0.6395,4283.0,4282.7,3.2078]
[1757084869979,0.262,4282.9,4282.3,2.09303981]
[1757084870177,1.5795,4282.8,4282.3,2.09303981]
[1757084870376,1.5795,4282.9,4282.3,2.09303981]
[1757084870676,0.262,4282.8,4282.3,2.09303981]
[1757084870883,1.5795,4282.7,4282.3,2.09303981]
[1757084871181,0.262,4282.6,4282.3,2.09303981]
[1757084871480,1.8415,4282.6,4282.3,2.09303981]
[1757084871981,0.262,4282.6,4282.3,2.09303981]
[1757084872182,3.8473,4283.0,4282.3,2.09303981]
[1757084872384,2.219,4282.5,4282.3,2.09303981]
[1757084872684,5.6888,4282.5,4282.4,2.70683838]
[1757084874082,5.6888,4282.5,4282.4,1.53861409]
[1757084874478,1.5795,4282.4,4281.3,0.262]
[1757084874679,1.5795,4282.4,4281.2,4.8211]
[1757084874978,4.7873,4282.0,4281.2,4.8211]
[1757084875174,0.262,4281.9,4281.3,1.6133]
[1757084875572,3.2078,4281.5,4280.8,1.6133]
[1757084875775,0.262,4281.4,4280.8,1.6133]
[1757084876485,0.262,4281.4,4280.3,1.6133]
[1757084876486,3.2078,4281.0,4280.3,1.6133]
[1757084876682,0.262,4280.9,4280.3,1.6133]
[1757084877382,0.43952784,4280.9,4280.3,1.6133]
[1757084877580,2.01902784,4280.9,4280.3,1.6133]
[1757084877979,0.262,4280.8,4280.2,2.08777495]
[1757084878174,3.2078,4280.5,4280.4,1.6133]
[1757084878381,1.5795,4280.4,4280.2,0.91955066]
[1757084878580,1.5795,4280.4,4279.9,1.6133]
[1757084878782,3.2078,4280.0,4279.5,4.67873229]
[1757084878982,0.262,4279.9,4279.5,2.918408]
[1757084879192,4.0,4279.8,4279.5,2.918408]
[1757084879382,1.5795,4279.7,4279.5,2.918408]
[1757084879583,1.8415,4279.6,4279.5,2.918408]
[1757084879778,3.2078,4280.0,4279.5,1.75018371]
[1757084879983,0.262,4279.9,4279.6,1.6133]
[1757084880186,0.262,4279.8,4279.7,1.6133]
[1757084880785,3.2078,4280.0,4279.5,0.5921]
[1757084880989,0.262,4280.3,4279.6,1.6133]
[1757084881196,1.8974,4280.6,4280.5,0.5921]
[1757084881492,1.6354,4280.6,4280.5,2.2054]
[1757084882590,1.8974,4280.6,4280.0,2.2054]
[1757084882792,4.7873,4280.5,4279.5,5.4132]
[1757084882982,4.7873,4279.9,4279.5,1.6133]
[1757084883181,0.262,4279.8,4279.0,2.2054]
[1757084883383,1.5795,4279.7,4279.0,1.6133]
[1757084884389,3.2078,4280.4,4279.1,1.6133]
[1757084884584,3.2078,4280.4,4279.5,2.2054]
[1757084884785,3.2078,4280.4,4279.6,1.6133]
[1757084884786,0.262,4280.3,4279.6,1.6133]
[1757084884986,0.262,4280.3,4280.0,0.5921]
[1757084885188,0.262,4280.3,4280.1,1.6133]
[1757084885381,0.262,4280.3,4280.0,0.5921]
[1757084885587,3.2078,4280.4,4280.1,1.6133]
[1757084885783,0.262,4280.3,4280.1,1.6133]
[1757084885989,1.6354,4280.6,4280.1,1.6133]
[1757084886495,1.8974,4280.6,4280.1,1.6133]
[1757084886690,1.8974,4280.6,4280.5,2.2054]
[1757084886996,1.8974,4280.6,4280.0,1.4704]
[1757084887194,3.2078,4280.3,4279.5,0.5921]
[1757084887394,1.6354,4280.6,4279.5,0.5921]
[1757084887595,1.6354,4280.6,4280.0,3.7999]
[1757084888397,1.6354,4280.6,4280.5,3.7999]
[1757084888594,1.6354,4280.6,4280.0,0.5921]
[1757084888896,3.2078,4280.3,4279.7,0.262]
[1757084889197,1.5795,4280.1,4279.7,1.6133]
[1757084889388,0.262,4280.2,4279.5,0.5921]
[1757084889586,3.2078,4280.3,4279.6,1.6133]
[1757084889790,1.8974,4280.6,4280.0,0.5921]
[1757084890188,1.8974,4280.6,4280.1,1.6133]
[1757084890492,1.6354,4280.6,4280.5,0.5921]
[1757084890685,1.6354,4280.6,4280.5,2.2054]
[1757084892294,1.6354,4280.6,4280.5,1.6133]
[1757084892494,1.6354,4280.6,4280.3,1.6133]
[1757084893190,1.6354,4280.6,4280.2,3.4698]
[1757084893389,1.6354,4280.6,4280.5,0.5921]
[1757084893590,1.6354,4280.6,4280.5,2.2054]
[1757084893996,1.6354,4280.6,4280.5,1.6133]
[1757084894192,1.6354,4280.6,4280.2,3.4698]
[1757084894390,1.6354,4280.6,4280.3,1.6133]
[1757084895090,1.6354,4280.6,4280.2,3.4698]
[1757084895295,1.6354,4280.6,4280.5,0.5921]
[1757084895498,1.6354,4280.6,4280.5,2.2054]
[1757084898092,3.2078,4282.2,4281.2,0.4204]
[1757084898292,1.5238,4282.8,4282.1,0.8291]
[1757084898498,1.19728642,4283.0,4282.7,3.2078]
[1757084898698,1.83748642,4283.0,4282.7,3.2078]
[1757084898898,1.5238,4282.8,4282.7,3.2078]
[1757084899102,1.19728642,4283.0,4282.7,4.0369]
[1757084899488,1.5238,4282.9,4282.7,3.2078]
[1757084899692,2.72108642,4283.0,4282.7,3.2078]
[1757084899995,1.5238,4282.9,4282.5,0.262]
[1757084900902,1.5238,4282.8,4282.5,0.262]
[1757084901402,0.4766,4283.0,4282.8,0.8291]
[1757084901598,0.4766,4283.0,4282.9,0.8291]
[1757084902099,1.5238,4282.9,4282.8,0.262]
[1757084902300,0.4766,4283.0,4282.8,0.262]
[1757084902501,0.4766,4283.0,4282.8,1.0911]
[1757084902702,0.4766,4283.0,4282.9,0.8291]
[1757084903108,0.4766,4283.0,4282.9,4.8291]
[1757084903299,1.5238,4284.4,4283.1,0.42021]
[1757084903498,2.164,4284.5,4283.9,3.2078]
[1757084903700,1.83748642,4285.0,4283.9,3.4698]
[1757084903902,3.36128642,4285.0,4284.4,3.2078]
[1757084904106,1.83748642,4285.0,4284.9,3.2078]
[1757084904308,1.19728642,4285.0,4284.9,3.2078]
[1757084904510,1.45928642,4285.7,4284.9,3.2078]
[1757084904711,2.164,4285.5,4284.9,3.2078]
[1757084904916,0.6402,4285.0,4284.8,0.262]
[1757084905111,0.9022,4285.0,4284.2,3.4698]
[1757084905310,0.9022,4285.0,4283.5,3.4698]
[1757084905311,1.5238,4284.4,4283.5,3.4698]
[1757084905512,1.5238,4284.4,4283.5,3.8222]
[1757084905715,1.5238,4284.4,4284.2,3.2078]
[1757084906117,1.7858,4284.9,4284.2,3.2078]
[1757084906319,1.7858,4284.9,4284.0,0.262]
[1757084906520,1.5238,4284.8,4284.0,0.262]
[1757084906719,0.6402,4285.0,4284.5,3.2078]
[1757084906914,1.5238,4285.3,4284.6,3.4698]
[1757084907213,1.5169,4285.5,4285.2,3.2078]
[1757084907515,1.5169,4285.5,4285.3,0.3524]
[1757084907721,1.5169,4285.5,4285.2,3.2078]
[1757084908018,1.5238,4286.2,4285.3,0.3524]
[1757084908217,3.2078,4286.3,4285.4,0.262]
[1757084908518,1.5238,4285.6,4285.5,3.2078]
[1757084908714,1.5238,4285.6,4285.4,0.262]
[1757084909311,1.5238,4285.9,4285.4,0.262]
[1757084909617,2.164,4285.5,4285.4,0.262]
[1757084909922,1.5238,4285.5,4285.4,0.262]
[1757084910618,2.157,4286.0,4285.4,0.262]
[1757084910817,3.6808,4286.0,4285.4,0.262]
[1757084911121,1.5168,4286.0,4285.5,3.2078]
[1757084911620,1.1643,4286.0,4285.6,0.23332999]
[1757084911820,1.1643,4286.0,4285.6,0.41998]
[1757084912010,1.1643,4286.0,4285.5,3.2078]
[1757084912321,1.5238,4285.9,4285.5,3.2078]
[1757084912914,1.1643,4286.0,4285.5,3.2078]
[1757084913117,1.1643,4286.0,4285.5,7.2078]
[1757084913420,1.1643,4286.0,4285.9,0.41994]
[1757084913624,1.5238,4286.8,4285.9,0.68094]
[1757084913822,1.5238,4286.8,4286.7,3.2078]
[1757084914323,1.5238,4287.4,4286.7,3.62766]
[1757084914519,4.08104571,4288.0,4286.7,3.62766]
[1757084914520,4.08104571,4288.0,4287.3,3.2078]
[1757084914722,1.5238,4287.7,4287.4,0.261]
[1757084914921,3.848,4288.0,4287.4,0.261]
[1757084915323,1.5238,4287.9,4287.4,0.261]
[1757084915825,1.5238,4287.7,4287.4,0.261]
[1757084916025,3.848,4288.0,4287.4,0.261]
[1757084916323,2.164,4288.0,4287.8,3.2078]
[1757084916518,1.5238,4287.9,4287.8,3.2078]
[1757084916928,0.6402,4288.5,4287.8,3.2078]
[1757084917125,1.5238,4288.4,4287.8,3.2078]
[1757084917425,1.5238,4287.9,4287.8,3.2078]
[1757084918617,5.5238,4287.9,4287.8,3.2078]
[1757084918823,0.6402,4287.5,4287.2,3.2078]
[1757084919022,1.5238,4287.4,4287.2,3.2078]
[1757084919817,0.6402,4287.5,4287.2,3.2078]
[1757084920023,1.5238,4287.4,4287.2,3.2078]
[1757084920326,0.6402,4287.5,4287.2,3.2078]
[1757084920627,1.5238,4287.9,4287.2,3.2078]
[1757084920830,1.5238,4287.9,4287.3,0.261]
[1757084921425,0.6402,4287.5,4287.4,0.261]
[1757084921626,2.164,4287.5,4287.4,0.261]
[1757084923124,0.6402,4288.0,4287.4,0.261]
[1757084923125,2.164,4288.0,4287.4,0.261]
[1757084923517,2.164,4288.0,4287.2,3.2078]
[1757084923722,1.5238,4287.9,4287.2,3.2078]
[1757084924224,2.164,4287.5,4287.2,3.2078]
[1757084924524,2.425,4288.0,4287.2,3.2078]
[1757084924730,2.164,4288.0,4287.2,3.2078]
[1757084925028,1.5238,4288.0,4287.8,1.4794]
[1757084925230,1.5238,4288.3,4287.8,0.261]
[1757084925430,1.1647,4288.4,4287.8,0.261]
[1757084925726,1.5238,4288.3,4287.8,0.261]
[1757084925928,1.5238,4287.9,4287.8,0.261]
[1757084926730,1.1647,4288.4,4287.8,0.261]
[1757084927432,0.6402,4288.0,4287.8,0.261]
[1757084927725,2.164,4287.5,4287.4,0.261]
[1757084927923,1.5238,4287.4,4287.3,0.261]
[1757084928125,2.2515,4288.0,4287.3,0.261]
[1757084928331,2.2515,4288.0,4287.4,3.2078]
[1757084928825,1.6113,4287.9,4287.4,3.2078]
[1757084929028,2.25,4287.5,4287.4,3.2078]
[1757084929827,2.25,4286.5,4286.4,3.2078]
[1757084930028,1.6113,4286.5,4286.4,3.2078]
[1757084930632,2.25,4286.5,4286.4,3.4688]
[1757084931027,2.25,4286.5,4286.4,3.2078]
[1757084931421,6.25,4286.5,4286.4,3.2078]
[1757084931728,2.25,4286.5,4286.4,3.2078]
[1757084933626,1.6113,4286.5,4286.4,3.2078]
[1757084933827,1.6113,4287.4,4286.5,1.4825]
[1757084934031,1.6113,4287.4,4287.0,3.2078]
[1757084934332,1.6113,4287.4,4287.0,4.6903]
[1757084934835,0.6387,4287.0,4286.9,0.261]
[1757084935029,2.25,4287.0,4286.9,0.261]
[1757084936032,0.6387,4287.0,4286.4,3.4688]
[1757084936235,0.6387,4286.5,4286.4,3.4688]
[1757084936425,2.25,4286.5,4286.4,3.4688]
[1757084937635,2.25,4286.5,4286.4,3.2078]
[1757084938232,1.6113,4286.5,4286.4,3.2078]
[1757084938433,0.59093118,4287.3,4286.4,3.2078]
[1757084938736,1.6113,4287.2,4286.5,0.261]
[1757084938933,1.6113,4287.2,4286.1,3.2078]
[1757084938934,1.6113,4286.9,4286.3,0.261]
[1757084939638,1.6113,4286.9,4286.1,3.2078]
[1757084939639,0.6387,4286.5,4286.1,3.2078]
[1757084940235,1.6113,4286.4,4286.1,3.2078]
[1757084940435,0.8987,4286.5,4285.9,0.26]
[1757084940641,1.6113,4286.4,4285.9,0.26]
[1757084940939,1.6113,4286.4,4285.6,3.2078]
[1757084941331,2.25,4286.0,4285.6,3.2078]
[1757084941630,0.59093118,4286.3,4285.6,3.2078]
[1757084941840,2.25,4286.0,4285.5,0.26]
[1757084942035,2.25,4286.0,4285.1,3.4678]
[1757084942233,0.6387,4286.0,4285.1,3.4678]
[1757084942434,0.6387,4285.0,4283.5,1.4825]
[1757084942638,1.6113,4284.9,4284.0,3.2078]
[1757084942947,0.26,4285.2,4284.6,1.4825]
[1757084943242,0.26,4285.2,4284.8,1.4825]
[1757084943434,0.6387,4285.0,4284.6,3.2078]
[1757084943633,1.6113,4285.3,4284.6,3.2078]
[1757084944545,1.8713,4285.4,4284.7,1.4825]
[1757084944736,1.6113,4285.4,4284.7,1.4825]
[1757084945244,4.8191,4285.9,4284.7,1.4825]
[1757084945444,1.6113,4285.7,4284.7,1.4825]
[1757084945941,0.26,4285.8,4284.6,3.4678]
[1757084946137,1.6113,4285.7,4284.6,3.4678]
[1757084946640,0.6387,4285.0,4284.0,3.2078]
[1757084946843,0.6387,4285.0,4284.2,0.26]
[1757084946844,1.6113,4284.9,4284.2,0.26]
[1757084947142,1.6113,4284.9,4284.1,3.2078]
[1757084947845,1.8713,4284.9,4284.1,3.2078]
[1757084948034,1.6113,4284.9,4284.2,1.4825]
[1757084948743,1.6113,4284.9,4284.3,0.26]
[1757084949343,0.23339,4284.9,4283.6,3.2078]
[1757084949547,3.44119,4284.9,4283.6,3.2078]
[1757084949749,1.6113,4284.8,4283.6,3.2078]
[1757084949940,0.6387,4284.5,4283.6,3.2078]
[1757084950245,1.6113,4284.4,4283.6,3.2078]
[1757084950445,3.2078,4284.4,4283.6,3.2078]
[1757084950642,1.6113,4284.3,4283.5,1.7425]
[1757084950847,1.6113,4284.3,4283.6,3.2078]
[1757084951147,1.6113,4284.9,4284.1,1.4825]
[1757084951344,3.2078,4285.0,4284.2,0.2334]
[1757084951648,2.20223118,4285.6,4284.6,1.4825]
[1757084951849,1.6113,4285.4,4284.5,3.2078]
[1757084952147,1.6113,4285.1,4284.3,0.26]
[1757084952349,1.6113,4285.1,4284.7,3.2078]
[1757084952548,2.51,4285.5,4284.7,3.2078]
[1757084952748,1.6113,4285.4,4284.7,3.2078]
[1757084953152,0.26,4285.3,4284.4,1.4825]
[1757084953449,1.6113,4285.4,4284.8,1.4825]
[1757084953649,3.2078,4285.7,4284.9,0.26]
[1757084953948,3.2078,4285.7,4285.0,1.4825]
[1757084954140,3.2078,4285.7,4285.0,2.0209]
[1757084954743,1.6113,4285.9,4285.0,2.0209]
[1757084954944,3.2078,4286.4,4285.4,3.2078]
[1757084954945,1.6113,4286.0,4285.4,3.2078]
[1757084955347,1.83598642,4286.5,4285.4,3.2078]
[1757084955348,1.83598642,4286.5,4285.5,1.4825]
[1757084955642,1.83598642,4286.5,4285.9,3.2078]
[1757084955947,1.6113,4286.4,4285.9,3.2078]
[1757084956144,1.6113,4285.9,4285.7,0.26]
[1757084956344,1.6113,4286.4,4285.8,3.2078]
[1757084957550,1.19728642,4286.5,4286.3,3.2078]
[1757084957740,1.19728642,4286.5,4286.4,1.4825]
[1757084958253,3.2078,4286.9,4286.3,3.2078]
[1757084958551,0.6347,4286.5,4285.7,0.26]
[1757084958753,1.5653,4286.4,4285.7,0.26]
[1757084959049,1.8253,4286.4,4285.7,0.26]
[1757084959844,0.6347,4286.0,4285.7,0.26]